fUSD/lending_fUSD_20250716
["ID","MTS","AMOUNT","RATE_DAILY","PERIOD"]
[372588901,1752695437099,-460.0,0.00019977,2]
[372588902,1752695437108,-460.0,0.00019977,2]
[372588904,1752695437117,-743.8,0.00019977,2]
[372588906,1752695437127,-695.55,0.00019977,2]
[372588908,1752695437136,-460.0,0.00019977,2]
[372588910,1752695437147,-460.0,0.00019977,2]
[372588912,1752695437156,-460.0,0.00019977,2]
[372588914,1752695437165,-2757.11,0.00019977,2]
[372588916,1752695437175,-626.73,0.00019977,2]
[372588918,1752695437184,-600.61,0.00019977,2]
[372588920,1752695437193,-1121.54,0.00019977,2]
[372588922,1752695437203,-693.11,0.00019977,2]
[372588924,1752695437212,-271.03853578,0.00019977,2]
[372588935,1752695437309,-188.96146422,0.00019977,2]
[372588937,1752695437319,-72.05029675,0.00019977,2]
[372588940,1752695437331,-387.94970325,0.00019977,2]
[372588942,1752695437340,-432.62229245,0.00019977,2]
[372588944,1752695437351,-133.89770755,0.00019977,2]
[372588946,1752695437360,-460.0,0.00019977,2]
[372588948,1752695437370,-602.36,0.00019977,2]
[372588950,1752695437379,-388.39795815,0.00019977,2]
[372588952,1752695437394,-71.60204185,0.00019977,2]
[372588954,1752695437404,-460.0,0.00019977,2]
[372588956,1752695437414,-460.0,0.00019977,2]
[372588958,1752695437423,-433.95996579,0.00019977,2]
[372588960,1752695437435,-901.16003421,0.00019977,2]
[372588962,1752695437444,-24.9401928,0.00019977,2]
[372588965,1752695437457,-435.0598072,0.00019977,2]
[372588967,1752695437476,-1415.54,0.00019977,2]
[372588969,1752695437486,-395.5001928,0.00019977,2]
[372589026,1752695438531,-460.0,0.00019976,2]
[372589028,1752695438541,-362.6398072,0.00019977,2]
[372589030,1752695438550,-460.0,0.00019977,2]
[372589032,1752695438559,-1294.85,0.00019977,2]
[372589034,1752695438569,-561.64,0.00019977,2]
[372589036,1752695438578,-460.0,0.00019977,2]
[372589038,1752695438587,-460.0,0.00019977,2]
[372589040,1752695438596,-912.29,0.00019977,2]
[372589042,1752695438606,-745.3,0.00019977,2]
[372589044,1752695438615,-460.0,0.00019977,2]
[372589046,1752695438624,-460.0,0.00019977,2]
[372589048,1752695438633,-1108.39,0.00019977,2]
[372589050,1752695438643,-460.0,0.00019977,2]
[372589052,1752695438653,-984.03,0.00019977,2]
[372589054,1752695438662,-342.95574588,0.00019977,2]
[372589057,1752695438672,-607.15,0.00019977,2]
[372589060,1752695438681,-500.0,0.00019977,2]
[372589063,1752695438691,-460.0,0.00019977,2]
[372589066,1752695438701,-960.81346512,0.00019977,2]
[372589071,1752695438716,-427.16653488,0.00019977,2]
[372589074,1752695438725,-460.0,0.00019977,2]
[372589076,1752695438734,-1080.24346514,0.00019977,2]
[372589078,1752695438748,-359.34653486,0.00019977,2]
[372589080,1752695438757,-460.0,0.00019977,2]
[372589082,1752695438766,-460.0,0.00019977,2]
[372589084,1752695438775,-341.53122714,0.00019977,2]
[372589087,1752695438789,-3873.55877286,0.00019977,2]
[372589088,1752695438798,-938.69,0.00019977,2]
[372589090,1752695438807,-460.0,0.00019977,2]
[372589092,1752695438816,-53.78322714,0.00019977,2]
[372589095,1752695438829,-406.21677286,0.00019977,2]
[372589097,1752695438838,-280.00822664,0.00019977,2]
[372589099,1752695438852,-179.99177336,0.00019977,2]
[372589101,1752695438861,-697.68,0.00019977,2]
[372589103,1752695438870,-460.0,0.00019977,2]
[372589105,1752695438879,-324.72822664,0.00019977,2]
[372589112,1752695438940,-135.27177336,0.00019977,2]
[372589114,1752695438949,-460.0,0.00019977,2]
[372589116,1752695438959,-1905.62,0.00019977,2]
[372589118,1752695438968,-217.10822364,0.00019977,2]
[372589121,1752695438979,-242.89177636,0.00019977,2]
[372589123,1752695438988,-692.03,0.00019977,2]
[372589125,1752695438996,-500.0,0.00019977,2]
[372589126,1752695439006,-460.0,0.00019977,2]
[372589128,1752695439015,-460.0,0.00019977,2]
[372589130,1752695439024,-460.0,0.00019977,2]
[372589132,1752695439034,-554.07822364,0.00019977,2]
[372589175,1752695439458,-270.38177636,0.00019977,2]
[372589177,1752695439467,-460.0,0.00019977,2]
[372589179,1752695439477,-630.15,0.00019977,2]
[372589180,1752695439487,-460.0,0.00019977,2]
[372589183,1752695439497,-460.0,0.00019977,2]
[372589184,1752695439506,-1051.74,0.00019977,2]
[372589187,1752695439517,-460.0,0.00019977,2]
[372589189,1752695439526,-460.0,0.00019977,2]
[372589191,1752695439535,-460.0,0.00019977,2]
[372589192,1752695439545,-970.35,0.00019977,2]
[372589194,1752695439554,-463.59820199,0.00019977,2]
[372589196,1752695439563,-460.0,0.00019977,2]
[372589198,1752695439573,-460.0,0.00019977,2]
[372589200,1752695439582,-460.0,0.00019977,2]
[372589202,1752695439592,-689.87,0.00019977,2]
[372589204,1752695439602,-449.76738851,0.00019977,2]
[372589206,1752695439611,-460.0,0.00019977,2]
[372589208,1752695439621,-460.0,0.00019977,2]
[372589209,1752695439630,-460.0,0.00019977,2]
[372589210,1752695439639,-460.0,0.00019977,2]
[372589211,1752695439651,-460.0,0.00019977,2]
[372589212,1752695439660,-460.0,0.00019977,2]
[372589213,1752695439670,-460.0,0.00019977,2]
[372589214,1752695439679,-460.0,0.00019977,2]
[372589215,1752695439688,-547.39,0.00019977,2]
[372589216,1752695439698,-460.0,0.00019977,2]
[372589218,1752695439707,-460.0,0.00019977,2]
[372589219,1752695439716,-460.0,0.00019977,2]
[372589220,1752695439725,-460.0,0.00019977,2]
[372589221,1752695439734,-460.0,0.00019977,2]
[372589222,1752695439744,-153.56021413,0.00019977,2]
[372589300,1752695440496,-306.43978587,0.00019977,2]
[372589302,1752695440505,-343.40922742,0.00019977,2]
[372589304,1752695440517,-116.59077258,0.00019977,2]
[372589306,1752695440526,-460.0,0.00019977,2]
[372589308,1752695440536,-267.75396588,0.00019977,2]
[372589310,1752695440547,-192.24603412,0.00019977,2]
[372589312,1752695440557,-505.97488381,0.00019977,2]
[372589314,1752695440566,-229.51932607,0.00019977,2]
[372589316,1752695440578,-230.48067393,0.00019977,2]
[372589318,1752695440587,-73.55249083,0.00019977,2]
[372589322,1752695440614,-386.44750917,0.00019977,2]
[372589324,1752695440624,-243.16182269,0.00019977,2]
[372589327,1752695440649,-216.83817731,0.00019977,2]
[372589329,1752695440658,-460.0,0.00019977,2]
[372589331,1752695440668,-344.25682269,0.00019977,2]
[372589334,1752695440679,-189.21475558,0.00019977,2]
[372589336,1752695440688,-294.00320299,0.00019977,2]
[372589338,1752695440700,-165.99679701,0.00019977,2]
[372589340,1752695440710,-460.0,0.00019977,2]
[372589342,1752695440720,-272.65272515,0.00019977,2]
[372589344,1752695440731,-268.62727485,0.00019977,2]
[372589346,1752695440740,-94.84552816,0.00019977,2]
[372589349,1752695440762,-2.86474677,0.00019977,2]
[372589353,1752695440785,-362.28972507,0.00019977,2]
[372589355,1752695440795,-5.53567133,0.00019977,2]
[372589357,1752695440811,-454.46432867,0.00019977,2]
[372589359,1752695440820,-266.20911405,0.00019977,2]
[372589362,1752695440837,-193.79088595,0.00019977,2]
[372589364,1752695440848,-460.0,0.00019977,2]
[372589366,1752695440858,-460.0,0.00019977,2]
[372589368,1752695440868,-575.99,0.00019977,2]
[372589370,1752695440879,-1817.85,0.00019977,2]
[372589372,1752695440889,-905.18,0.00019977,2]
[372589374,1752695440900,-461.56984299,0.00019977,2]
[372589375,1752695440910,-460.0,0.00019977,2]
[372589377,1752695440919,-460.0,0.00019977,2]
[372589379,1752695440927,-1402.13,0.00019977,2]
[372589381,1752695440936,-460.0,0.00019977,2]
[372589383,1752695440945,-460.0,0.00019977,2]
[372589385,1752695440954,-460.0,0.00019977,2]
[372589387,1752695440962,-776.43,0.00019977,2]
[372589389,1752695440971,-2760.04035633,0.00019977,2]
[372589607,1752695443079,-799.13781038,0.0001911,2]
[372589614,1752695443131,-200.86218962,0.0001911,2]
[372589616,1752695443142,-1701.45964367,0.00019977,2]
[372589618,1752695443153,-485.58046671,0.00019977,2]
[372589620,1752695443164,-336.7,0.00019977,2]
[372589623,1752695443185,-217.69953329,0.00019977,2]
[372589625,1752695443195,-250.0,0.00019977,2]
[372589627,1752695443204,-460.0,0.00019977,2]
[372589629,1752695443213,-64.57771727,0.00019977,2]
[372589633,1752695443239,-395.42228273,0.00019977,2]
[372589635,1752695443250,-1083.29,0.00019977,2]
[372589637,1752695443258,-166.29224434,0.00019977,2]
[372589911,1752695446060,-460.0,0.00019976,2]
[372589913,1752695446075,-914.72,0.00019976,2]
[372589915,1752695446086,-460.0,0.00019976,2]
[372589917,1752695446095,-460.0,0.00019976,2]
[372589919,1752695446106,-293.70775566,0.00019977,2]
[372589921,1752695446116,-771.84,0.00019977,2]
[372589923,1752695446126,-154.297848,0.00019977,2]
[372589925,1752695446136,-835.71705796,0.00019977,2]
[372589927,1752695446149,-1052.13187304,0.00019977,2]
[372589929,1752695446159,-8742.04,0.00019977,2]
[372589931,1752695446170,-601.46,0.00019977,2]
[372589933,1752695446180,-157.220019,0.00019977,2]
[372589935,1752695446190,-1000.0,0.00019977,2]
[372589937,1752695446200,-460.0,0.00019977,2]
[372589939,1752695446210,-614.82,0.00019977,2]
[372589941,1752695446221,-1716.26,0.00019977,2]
[372589943,1752695446230,-1974.550351,0.00019977,2]
[372589945,1752695446240,-617.29,0.00019977,2]
[372589947,1752695446250,-737.55,0.00019977,2]
[372589949,1752695446260,-1973.18497,0.00019977,2]
[372589950,1752695446270,-460.0,0.00019977,2]
[372589952,1752695446281,-460.0,0.00019977,2]
[372589954,1752695446290,-253.182551,0.00019977,2]
[372589958,1752695446318,-206.817449,0.00019977,2]
[372589960,1752695446328,-460.0,0.00019977,2]
[372589962,1752695446338,-2226.48,0.00019977,2]
[372589964,1752695446348,-460.0,0.00019977,2]
[372589966,1752695446357,-460.0,0.00019977,2]
[372589967,1752695446367,-394.78588244,0.00019977,2]
[372589970,1752695446379,-65.21411756,0.00019977,2]
[372589971,1752695446389,-460.0,0.00019977,2]
[372589973,1752695446400,-740.61,0.00019977,2]
[372589975,1752695446409,-460.0,0.00019977,2]
[372589977,1752695446419,-460.0,0.00019977,2]
[372589979,1752695446428,-424.47588244,0.00019977,2]
[372589981,1752695446440,-313.73631688,0.00019977,2]
[372589983,1752695446452,-1451.034749,0.00019977,2]
[372589987,1752695446465,-545.152395,0.00019977,2]
[372589997,1752695446518,-524.68065668,0.00019977,2]
[372589998,1752695446528,-450.31934312,0.00019977,2]
[372590001,1752695446539,-1232.69065688,0.00019977,2]
[372590003,1752695446549,-460.0,0.00019977,2]
[372590004,1752695446559,-903.65,0.00019977,2]
[372590006,1752695446568,-150.923723,0.00019977,2]
[372590008,1752695446578,-323.18651737,0.00019977,2]
[372590409,1752695471190,14401.79608768,0.00023101,120]
[372590410,1752695472891,507.07515075,0.00023101,120]
[372590411,1752695533537,1000.0,0.00017868,2]
[372590413,1752695667575,500.0,0.00023101,120]
[372590424,1752695880169,244.87,0.00013699,2]
[372590426,1752696023191,150.0,0.00023,30]
[372590427,1752696023367,150.0,0.00023,30]
[372590428,1752696023490,224.51128,0.00023,30]
[372590429,1752696203223,-151.0,0.00018256,2]
[372590430,1752696203251,-151.0,0.00018257,2]
[372590431,1752696203279,-165.41646928,0.00018258,2]
[372590432,1752696203307,-151.0,0.00018258,2]
[372590433,1752696203333,-151.0,0.00018265,2]
[372590434,1752696203362,-151.0,0.00018271,2]
[372590435,1752696203390,-6681.99,0.00018692,2]
[372590436,1752696203417,-3178.59353072,0.00018704,2]
[372590437,1752696308137,150.0,0.00018099,2]
[372590438,1752696308248,150.0,0.00018099,2]
[372590439,1752696315885,150.0,0.00018099,2]
[372590440,1752696330979,150.0,0.00018099,2]
[372590451,1752696632160,-153.78,0.00018606,2]
[372590452,1752696632172,-250.0,0.00018643,2]
[372590453,1752696632183,-88.265,0.00018678,2]
[372590454,1752696632212,-81.515,0.00018678,2]
[372590455,1752696632223,-183.77,0.00018698,2]
[372590456,1752696632234,-216.76459687,0.00018704,2]
[372590457,1752696632266,-349.75883208,0.00018704,2]
[372590458,1752696632279,-1993.85410016,0.00018704,2]
[372590459,1752696632375,-4267.63894017,0.00018704,2]
[372590460,1752696632387,-300.0,0.00018727,2]
[372590461,1752696632397,-600.0,0.00018727,2]
[372590462,1752696632410,-1200.0,0.00018727,2]
[372590463,1752696632427,-500.0,0.00018728,2]
[372590464,1752696632438,-500.0,0.00018728,2]
[372590465,1752696632451,-500.0,0.00018728,2]
[372590466,1752696632463,-291.865817,0.00018728,2]
[372590467,1752696632475,-500.0,0.00018728,2]
[372590468,1752696632486,-151.0,0.00018728,2]
[372590469,1752696632497,-500.0,0.00018728,2]
[372590470,1752696632508,-500.0,0.00018728,2]
[372590471,1752696632519,-500.0,0.00018728,2]
[372590472,1752696632530,-500.0,0.00018728,2]
[372590474,1752696632541,-500.0,0.00018728,2]
[372590475,1752696632552,-500.0,0.00018728,2]
[372590477,1752696632564,-500.0,0.00018728,2]
[372590480,1752696632576,-500.0,0.00018728,2]
[372590481,1752696632596,-500.0,0.00018728,2]
[372590482,1752696632607,-500.0,0.00018728,2]
[372590483,1752696632618,-500.0,0.00018728,2]
[372590484,1752696632629,-225.4601811,0.00018728,2]
[372590485,1752696632640,-151.0,0.00018728,2]
[372590486,1752696632651,-151.0,0.00018728,2]
[372590487,1752696632664,-151.0,0.00018728,2]
[372590488,1752696632675,-151.0,0.00018728,2]
[372590489,1752696632686,-151.0,0.00018728,2]
[372590490,1752696632697,-24.03511173,0.00018728,2]
[372590491,1752696632710,-126.96488827,0.00018728,2]
[372590516,1752696632721,-151.0,0.00018728,2]
[372590517,1752696633689,-151.0,0.00018728,2]
[372590518,1752696633709,-151.0,0.00018728,2]
[372590519,1752696633720,-151.0,0.00018728,2]
[372590520,1752696633729,-151.0,0.00018728,2]
[372590521,1752696633739,-151.0,0.00018728,2]
[372590522,1752696633749,-5751.36773116,0.0001874,2]
[372590523,1752696633855,-2836.12885735,0.0001874,2]
[372590524,1752696633868,-841.64322174,0.0001874,2]
[372590528,1752696638043,-7836.30197012,0.0001874,2]
[372590529,1752696638056,-632.25821963,0.0001874,2]
[372590530,1752696638065,-161.16,0.00018803,2]
[372590531,1752696638074,-206.58178037,0.00018803,2]
[372590532,1752696638151,-1574.56821963,0.00018803,2]
[372590533,1752696638161,-190.0,0.00018855,7]
[372590534,1752696638170,-172.19,0.00018855,2]
[372590535,1752696638179,-1878.62958195,0.000189,2]
[372590536,1752696638189,-200.0,0.00018953,2]
[372590537,1752696638198,-162.7,0.00018953,2]
[372590538,1752696638207,-464.95533613,0.00018991,2]
[372590539,1752696638219,-1050.54466387,0.00018991,2]
[372590540,1752696638228,-1878.62958176,0.00019107,2]
[372590541,1752696638238,-168.15,0.00019114,2]
[372590542,1752696638247,-151.0,0.00019178,2]
[372590543,1752696638256,-152.0,0.00019206,3]
[372590544,1752696638266,-197.15,0.00019232,2]
[372590545,1752696638275,-207.4,0.00019283,2]
[372590546,1752696638285,-510.51641595,0.00019283,2]
[372590547,1752696638300,-522.9795269,0.00019283,2]
[372590548,1752696638312,-2998.36005715,0.00019283,2]
[372590549,1752696638321,-1878.62958176,0.00019314,2]
[372590550,1752696638331,-244.34485821,0.00019338,2]
[372590734,1752696640256,-1754.399996,0.00019338,2]
[372590736,1752696640268,-311.98467846,0.00019338,2]
[372590741,1752696640310,-487.87970553,0.00019338,2]
[372590748,1752696640364,-311.98467846,0.00019338,2]
[372590799,1752696640838,-689.43203415,0.00019338,2]
[372590809,1752696640930,-24.05330563,0.00019338,2]
[372590811,1752696640940,-168.0,0.00019347,2]
[372590813,1752696640949,-529.0,0.00019471,2]
[372590815,1752696640959,-300.0,0.000195,7]
[372590817,1752696640968,-1878.62958176,0.00019521,2]
[372590819,1752696640977,-600.0,0.000196,7]
[372590821,1752696640986,-166.77,0.00019674,2]
[372590823,1752696640995,-900.0,0.000197,7]
[372590825,1752696641005,-156.587,0.00019726,2]
[372590827,1752696641014,-1392.56542382,0.00019728,2]
[372590830,1752696641033,-486.06415794,0.00019728,2]
[372590832,1752696641047,-161.16,0.00019743,2]
[372590834,1752696641056,-168.0,0.00019769,2]
[372590836,1752696641065,-703.98382012,0.000198,7]
[372591065,1752696643259,-596.01617988,0.000198,7]
[372591067,1752696643269,-48.58131357,0.00019874,2]
[372591073,1752696643313,-3475.48177104,0.00019874,2]
[372591075,1752696643322,-658.27435353,0.00019875,2]
[372591077,1752696643334,-341.72564647,0.00019875,2]
[372591079,1752696643343,-1000.0,0.00019876,2]
[372591081,1752696643352,-644.71138132,0.00019876,2]
[372591085,1752696643379,-3670.35558468,0.00019876,2]
[372591366,1752696646173,-356.48784019,0.00019876,2]
[372591369,1752696646194,-328.44519381,0.00019876,2]
[372591371,1752696646206,-989.04480619,0.00019876,2]
[372591373,1752696646218,-721.84064632,0.00019876,2]
[372591375,1752696646228,-383.59557201,0.00019876,2]
[372591377,1752696646237,-218.43213848,0.00019876,2]
[372591379,1752696646247,-487.995,0.00019877,2]
[372591381,1752696646257,-151.1961105,0.00019877,2]
[372591383,1752696646266,-61.11722563,0.00019878,2]
[372591386,1752696646291,-1748.2465,0.00019878,2]
[372591389,1752696646303,-2964.60000002,0.00019878,2]
[372591393,1752696646334,-1084.4,0.00019878,2]
[372591397,1752696646371,-4141.63627435,0.00019878,2]
[372591399,1752696646386,-156.05975276,0.00019899,2]
[372591401,1752696646396,-322.76701186,0.000199,7]
[372591403,1752696646407,-1154.7600098,0.000199,7]
[372592334,1752696708685,250.0,0.00015,2]
[372592335,1752696762891,4228.61710477,0.000145,7]
[372592336,1752696762913,10000.0,0.000145,7]
[372592337,1752696762935,10000.0,0.000145,7]
[372592338,1752696762957,10000.0,0.000145,7]
[372592339,1752696762979,10000.0,0.000145,7]
[372592340,1752696763001,10000.0,0.000145,7]
[372592341,1752696763024,10000.0,0.000145,7]
[372592342,1752696763046,10000.0,0.000145,7]
[372592343,1752696763066,10000.0,0.000145,7]
[372592344,1752696763088,10000.0,0.000145,7]
[372592345,1752696763110,10000.0,0.000145,7]
[372592346,1752696763131,10000.0,0.000145,7]
[372592347,1752696763151,10000.0,0.000145,7]
[372592348,1752696763172,10000.0,0.000145,7]
[372592349,1752696763194,10000.0,0.000145,7]
[372592350,1752696763215,10000.0,0.000145,7]
[372592351,1752696763236,10000.0,0.000145,7]
[372592352,1752696763257,1702.27820763,0.000145,7]
[372592354,1752696996618,232.62,0.00013699,2]
[372592355,1752697029644,4929.0,0.000174,5]
[372592356,1752697218286,-355.92,0.0001882,2]
[372592357,1752697218310,-355.92,0.0001883,2]
[372592358,1752697218333,-355.92,0.0001884,2]
[372592359,1752697218357,-355.92,0.0001885,2]
[372592360,1752697218379,-2813.35903763,0.00018859,2]
[372592361,1752697218401,-355.92,0.0001886,2]
[372592362,1752697218429,-355.92,0.00018869,2]
[372592363,1752697218452,-355.92,0.00018879,2]
[372592364,1752697218475,-355.92,0.00018889,2]
[372592365,1752697218498,-355.92,0.00018899,2]
[372592366,1752697218522,-355.92,0.00018909,2]
[372592367,1752697218546,-628.97,0.00018916,2]
[372592368,1752697218571,-355.92,0.00018919,2]
[372592369,1752697218594,-355.92,0.00018929,2]
[372592370,1752697218616,-180.2,0.00018933,2]
[372592371,1752697218640,-1200.0,0.00018938,2]
[372592372,1752697218665,-355.92,0.00018939,2]
[372592373,1752697218688,-355.92,0.00018949,2]
[372592374,1752697218711,-355.92,0.00018959,2]
[372592375,1752697218734,-355.92,0.00018969,2]
[372592376,1752697218757,-600.0,0.00018977,2]
[372592377,1752697218781,-300.0,0.00018977,2]
[372592378,1752697218803,-300.0,0.00018977,2]
[372592379,1752697218825,-950.23,0.00018978,2]
[372592380,1752697218849,-355.92,0.00018979,2]
[372592381,1752697218871,-1000.0,0.00018984,2]
[372592382,1752697218895,-355.92,0.00018988,2]
[372592383,1752697218919,-355.92,0.00018998,2]
[372592384,1752697218942,-355.92,0.00019008,2]
[372592385,1752697218966,-150.0,0.00019051,2]
[372592386,1752697218989,-150.0,0.00019061,2]
[372592387,1752697219013,-150.0,0.00019138,2]
[372592388,1752697219035,-151.0,0.00019178,2]
[372592389,1752697219062,-150.0,0.00019452,2]
[372592390,1752697219086,-150.0,0.0001949,2]
[372592391,1752697219109,-500.0,0.000195,7]
[372592392,1752697219132,-1000.0,0.000196,7]
[372592393,1752697219154,-709.01209887,0.00019634,2]
[372592394,1752697219179,-150.0,0.00019649,2]
[372592395,1752697219202,-150.0,0.00019691,2]
[372592396,1752697219224,-1500.0,0.000197,7]
[372592397,1752697219246,-156.587,0.00019726,2]
[372592398,1752697219268,-4447.64897,0.0001974,2]
[372592399,1752697219292,-150.0,0.00019782,2]
[372592400,1752697219314,-2000.0,0.000198,7]
[372592401,1752697219338,-150.0,0.00019821,2]
[372592402,1752697219362,-150.0,0.00019837,2]
[372592403,1752697219384,-207.4,0.00019863,2]
[372592404,1752697219406,-2515.14743547,0.00019863,2]
[372592405,1752697219431,-1000.0,0.00019874,2]
[372592406,1752697219452,-3986.5679,0.00019874,2]
[372592407,1752697219475,-114283.47755803,0.00019874,2]
[372592408,1752697268062,3136.10179237,7.945e-05,2]
[372592409,1752697268083,2070.35627263,7.945e-05,2]
[372592410,1752697335330,-278.85,0.00018502,2]
[372592411,1752697335353,-1000.0,0.00018576,2]
[372592412,1752697335375,-250.0,0.00018576,2]
[372592413,1752697335400,-262.48,0.0001865,2]
[372592414,1752697335423,-151.0,0.00018739,2]
[372592415,1752697335449,-151.0,0.00018795,2]
[372592416,1752697335472,-500.0,0.00018816,2]
[372592417,1752697335495,-151.0,0.00018842,2]
[372592418,1752697335517,-151.0,0.00018894,2]
[372592419,1752697335542,-1487.15915361,0.000189,2]
[372592420,1752697335565,-190.0,0.00018945,7]
[372592421,1752697335587,-500.0,0.00018953,2]
[372592422,1752697335612,-3064.03,0.00018972,2]
[372592423,1752697335633,-783.75738785,0.00019,2]
[372592424,1752697335660,-1487.15915348,0.00019107,2]
[372592425,1752697335682,-29556.06,0.00019178,2]
[372592426,1752697335704,-5258.07759622,0.00019283,2]
[372592427,1752697335728,-1487.15915348,0.00019314,2]
[372592428,1752697335751,-579.15,0.00019338,2]
[372592429,1752697335774,-783.75738785,0.00019379,2]
[372592430,1752697335796,-250.0,0.00019399,2]
[372592431,1752697335821,-1487.15915348,0.00019521,2]
[372592432,1752697335843,-783.75738785,0.00019717,2]
[372592433,1752697335867,-1487.15915348,0.00019728,2]
[372592434,1752697335889,-180.04,0.00019864,2]
[372592435,1752697335911,-9043.36,0.00019864,2]
[372592436,1752697335932,-151.0,0.00019864,2]
[372592437,1752697335954,-500.0,0.00019864,2]
[372592438,1752697335976,-500.0,0.00019864,2]
[372592439,1752697336000,-663.74403022,0.00019864,2]
[372592440,1752697336022,-151.0,0.00019864,2]
[372592441,1752697336044,-500.0,0.00019864,2]
[372592442,1752697336065,-500.0,0.00019864,2]
[372592443,1752697336088,-300.0,0.00019864,2]
[372592444,1752697336110,-6868.3194,0.00019873,2]
[372592445,1752697336137,-3131.82104248,0.00019874,2]
[372592447,1752697378448,-122.47297834,0.000199,7]
[372592448,1752697378473,-2500.0,0.000199,7]
[372592449,1752697378513,-500.0,0.00019973,5]
[372592450,1752697378616,-4000.0,0.0002,4]
[372592451,1752697401994,-150.0,0.00018502,2]
[372592452,1752697402018,-151.0,0.00018674,2]
[372592453,1752697402040,-151.0,0.00018706,2]
[372592454,1752697402063,-151.0,0.00018716,2]
[372592455,1752697402087,-151.0,0.00018854,2]
[372592456,1752697402111,-242.49647417,0.00019178,2]
[372592457,1752697402134,-207.4,0.00019862,2]
[372592458,1752697402157,-4031.856,0.00019862,2]
[372592459,1752697402180,-5000.0,0.00019863,2]
[372592460,1752697402202,-151.0,0.00019863,2]
[372592461,1752697402224,-500.0,0.00019864,2]
[372592462,1752697402248,-300.0,0.00019864,2]
[372592463,1752697402270,-500.0,0.00019864,2]
[372592464,1752697402293,-300.0,0.00019864,2]
[372592465,1752697402315,-500.0,0.00019864,2]
[372592466,1752697402338,-300.0,0.00019864,2]
[372592467,1752697402359,-500.0,0.00019864,2]
[372592468,1752697402381,-300.0,0.00019864,2]
[372592469,1752697402403,-500.0,0.00019864,2]
[372592470,1752697402424,-401.19111454,0.00019864,2]
[372592471,1752697402445,-300.0,0.00019864,2]
[372592472,1752697402468,-500.0,0.00019864,2]
[372592473,1752697402489,-500.0,0.00019864,2]
[372592474,1752697402512,-500.0,0.00019864,2]
[372592475,1752697402534,-500.0,0.00019864,2]
[372592476,1752697402559,-294.80286123,0.00019864,2]
[372592477,1752697402581,-151.0,0.00019864,2]
[372592478,1752697402602,-157.09956598,0.00019864,2]
[372592479,1752697402627,-500.0,0.00019864,2]
[372592480,1752697402649,-500.0,0.00019864,2]
[372592481,1752697402673,-151.0,0.00019864,2]
[372592482,1752697402695,-323.495262,0.00019864,2]
[372592483,1752697402718,-151.0,0.00019864,2]
[372592484,1752697402739,-151.0,0.00019864,2]
[372592485,1752697402761,-151.0,0.00019864,2]
[372592486,1752697402783,-151.0,0.00019864,2]
[372592487,1752697402805,-274.55994806,0.00019864,2]
[372592488,1752697402828,-151.0,0.00019864,2]
[372592489,1752697402850,-151.0,0.00019864,2]
[372592490,1752697402873,-151.0,0.00019864,2]
[372592491,1752697402896,-151.0,0.00019864,2]
[372592492,1752697402919,-151.0,0.00019864,2]
[372592493,1752697402942,-151.0,0.00019864,2]
[372592494,1752697402965,-151.0,0.00019864,2]
[372592495,1752697402987,-151.0,0.00019864,2]
[372592496,1752697403009,-151.0,0.00019864,2]